bitfinex-derivatives/quotes_ETHF0:USTF0_20250712
["timestamp","ask_amount","ask_price","bid_price","bid_amount"]
[1752333348836,49.227,2927.5,2926.3,4.38412]
[1752333348837,52.1872,2927.8,2927.1,0.9939]
[1752333349035,2.35809563,2927.9,2927.4,0.68296]
[1752333349036,3.31879563,2927.5,2927.4,0.68296]
[1752333349237,1.86578738,2927.5,2927.4,4.38386]
[1752333349538,0.90508738,2927.5,2927.4,4.38386]
[1752333349738,50.479,2927.7,2927.6,4.38381]
[1752333349942,51.38537655,2927.7,2927.6,7.59161]
[1752333353436,0.90637655,2927.7,2927.6,12.59161]
[1752333353835,1.2064619,2928.1,2928.0,0.68282]
[1752333354033,50.436,2928.1,2928.0,7.59151]
[1752333354234,50.436,2928.1,2928.0,7.59152]
[1752333354940,52.0795,2928.1,2928.0,5.9148]
[1752333355146,0.68285,2927.9,2927.7,0.9939]
[1752333355444,2.1671619,2927.9,2927.8,5.9148]
[1752333355744,53.2750019,2927.9,2927.8,5.9148]
[1752333356144,56.44123563,2927.9,2927.8,3.2078]
[1752333356346,1.64361,2927.6,2927.5,3.2078]
[1752333356649,1.70738,2927.5,2927.2,3.2078]
[1752333356841,0.68298,2927.3,2927.2,3.2078]
[1752333357041,3.65828,2927.3,2927.2,3.2078]
[1752333358240,8.65828,2927.3,2927.2,3.2078]
[1752333358446,1.64378,2926.9,2926.8,5.9148]
[1752333358749,50.403,2926.9,2926.8,6.9087]
[1752333359045,51.08608,2926.9,2926.8,6.9087]
[1752333359242,52.04678,2926.9,2926.8,6.9087]
[1752333359842,52.04678,2926.9,2926.8,3.2078]
[1752333360047,54.06138,2926.9,2926.8,3.2078]
[1752333361249,0.68315,2926.6,2926.5,3.2078]
[1752333361447,52.03285,2926.6,2926.5,3.2078]
[1752333361644,54.04745,2926.6,2926.5,3.2078]
[1752333362343,51.06815,2926.6,2926.5,6.9087]
[1752333362650,52.02885,2926.6,2926.5,6.9087]
[1752333362942,54.04345,2926.6,2926.5,3.2078]
[1752333363345,1.64394,2926.2,2926.1,5.9148]
[1752333363547,52.02194,2926.2,2926.1,3.2078]
[1752333364852,52.02194,2926.2,2926.1,5.9148]
[1752333365446,52.02194,2926.2,2926.1,6.9087]
[1752333366046,51.3387,2926.2,2926.1,6.9087]
[1752333366245,52.02194,2926.2,2926.1,6.9087]
[1752333366753,50.378,2926.2,2926.1,7.59196]
[1752333367648,51.3387,2926.2,2926.1,7.59196]
[1752333367950,52.02194,2926.2,2926.1,5.9148]
[1752333368449,52.94564175,2926.2,2926.1,5.9148]
[1752333368651,52.26240175,2926.2,2926.1,7.59196]
[1752333368848,51.30170175,2926.2,2926.1,7.59196]
[1752333369242,50.378,2926.2,2926.1,7.59196]
[1752333370153,0.6831,2926.8,2926.7,1.67702]
[1752333370455,51.2716236,2926.8,2926.7,4.38402]
[1752333371346,51.27252531,2926.8,2926.7,4.38402]
[1752333371547,50.347,2926.8,2926.7,4.38402]
[1752333371752,50.335,2927.0,2926.9,0.68308]
[1752333372046,2.84383695,2927.6,2926.9,8.2078]
[1752333372246,1.88645171,2927.5,2927.4,0.9939]
[1752333372450,1.88645171,2927.5,2927.4,4.38386]
[1752333372746,52.21645171,2927.5,2927.4,4.38386]
[1752333372950,52.89939171,2927.5,2927.4,3.7009]
[1752333374149,3.42255,2927.0,2926.9,3.2078]
[1752333374349,54.70425,2927.0,2926.9,3.2078]
[1752333374549,54.70425,2927.0,2926.9,6.7989]
[1752333375655,50.321,2927.0,2926.9,7.48198]
[1752333375949,51.00405,2927.0,2926.9,6.7989]
[1752333376256,51.24267838,2927.0,2926.9,7.48198]
[1752333376455,50.314,2927.0,2926.9,7.48198]
[1752333376857,1.20020695,2927.5,2927.4,1.67036]
[1752333377150,51.22867354,2927.5,2927.4,7.47536]
[1752333377750,50.3,2927.5,2927.4,7.47536]
[1752333378055,50.295,2927.5,2927.4,6.7924]
[1752333378257,50.295,2927.5,2927.4,7.47536]
[1752333378557,50.291,2927.8,2927.7,4.26749]
[1752333378853,50.291,2927.8,2927.7,7.47529]
[1752333379055,50.97387,2927.8,2927.7,7.47529]
[1752333379358,54.62337,2927.8,2927.7,3.2078]
[1752333379549,54.62337,2927.8,2927.7,6.48789]
[1752333379856,51.88387,2927.8,2927.7,7.47529]
[1752333380053,50.291,2927.8,2927.7,7.47529]
[1752333380253,50.28,2927.8,2927.7,7.47529]
[1752333380853,50.274,2927.9,2927.7,3.2078]
[1752333381049,50.274,2927.9,2927.8,3.28007]
[1752333381553,50.274,2927.9,2927.8,4.26747]
[1752333382559,50.261,2928.2,2927.8,8.5846]
[1752333382755,50.261,2928.2,2928.1,6.4878]
[1752333382959,50.261,2928.2,2928.1,7.4752]
[1752333383459,49.206,2928.6,2928.4,0.68273]
[1752333383758,49.8887,2928.6,2928.5,3.2078]
[1752333383953,50.7987,2928.6,2928.5,3.2078]
[1752333384156,50.7987,2928.6,2928.5,5.805]
[1752333384557,101.0447,2928.6,2928.5,6.4877]
[1752333384761,101.0447,2928.6,2928.5,6.7924]
[1752333385059,51.156,2928.6,2928.5,7.4751]
[1752333385452,50.246,2928.6,2928.5,7.4751]
[1752333386053,50.239,2928.7,2928.6,3.5846]
[1752333386254,50.239,2928.7,2928.6,4.26728]
[1752333387149,3.6495,2929.1,2929.0,0.68259]
[1752333387351,50.224,2929.1,2929.0,4.26719]
[1752333388771,50.219,2929.2,2928.9,0.9874]
[1752333389062,4.33204,2929.2,2929.1,3.2078]
[1752333389659,54.54004,2929.2,2929.1,3.2078]
[1752333390259,54.27250563,2929.2,2928.7,3.2078]
[1752333390450,0.68263,2928.8,2928.7,3.2078]
[1752333390649,50.194,2928.8,2928.7,7.47506]
[1752333390855,50.192,2929.0,2928.9,0.9874]
[1752333391156,50.192,2929.1,2929.0,1.66999]
[1752333391352,50.19,2929.2,2929.1,1.66997]
[1752333391557,50.188,2929.2,2929.1,3.5846]
[1752333391755,50.188,2929.2,2929.1,4.26717]
[1752333392752,0.68257,2929.1,2929.0,3.2078]
[1752333393059,50.188,2929.2,2929.1,0.68257]
[1752333393256,50.87054,2929.2,2929.1,0.68257]
[1752333393562,50.87054,2929.2,2929.1,4.26717]
[1752333393756,4.33207,2929.1,2929.0,3.89037]
[1752333394264,0.91,2929.1,2929.0,7.47497]
[1752333394561,50.188,2929.2,2929.1,4.26717]
[1752333394760,51.78054,2929.2,2929.1,3.5846]
[1752333394963,50.188,2929.2,2929.1,4.26717]
[1752333395463,50.87054,2929.2,2929.1,4.26717]
[1752333395663,51.78054,2929.2,2929.1,4.26716]
[1752333395864,50.188,2929.2,2929.1,4.26716]
[1752333396064,50.152,2929.3,2929.0,4.91427]
[1752333396254,50.152,2929.3,2929.2,3.27974]
[1752333396457,50.152,2929.3,2929.2,4.26714]
[1752333398161,0.68257,2929.1,2929.0,3.2078]
[1752333398362,53.7905,2929.1,2929.0,3.89039]
[1752333399060,54.47307,2929.1,2929.0,3.89039]
[1752333399269,54.47307,2929.1,2929.0,3.2078]
[1752333400367,54.47307,2929.1,2929.0,3.89039]
[1752333400666,53.7905,2929.1,2929.0,3.89039]
[1752333400859,53.7705,2929.1,2929.0,7.47499]
[1752333401461,2.7395,2929.4,2929.3,0.68252]
[1752333401661,0.68246,2929.6,2929.5,0.68245]
[1752333401861,53.7625,2929.6,2929.5,0.68245]
[1752333402060,53.7625,2929.6,2929.5,4.26705]
[1752333403567,54.44495,2929.6,2929.5,3.5846]
[1752333403861,53.7625,2929.6,2929.5,4.26707]
[1752333404065,54.44495,2929.6,2929.5,2.5972]
[1752333404265,53.7625,2929.6,2929.5,3.27967]
[1752333404466,50.113,2929.6,2929.3,4.1952]
[1752333404668,3.4848,2929.4,2929.3,3.8903]
[1752333404865,53.5798,2929.4,2929.3,7.4233]
[1752333405472,54.2623,2929.4,2929.3,3.2078]
[1752333406568,53.5798,2929.4,2929.3,3.89032]
[1752333406776,54.2623,2929.4,2929.3,3.2078]
[1752333407867,56.62039563,2929.4,2929.3,3.2078]
[1752333408267,54.2623,2929.4,2929.3,3.2078]
[1752333409266,95.0623,2929.4,2929.3,3.2078]
[1752333410372,95.99153191,2929.4,2929.3,3.2078]
[1752333410973,3.25737,2929.1,2929.0,3.2078]
[1752333411273,54.22887,2929.1,2929.0,3.2078]
[1752333412463,54.22887,2929.1,2929.0,5.7534]
[1752333413273,54.22887,2929.1,2929.0,3.2078]
[1752333413669,55.16102821,2929.1,2929.0,3.2078]
[1752333413973,4.17194,2928.8,2928.7,3.2078]
[1752333414175,56.56603563,2928.8,2928.7,3.2078]
[1752333414570,57.49844555,2928.8,2928.7,3.2078]
[1752333414772,57.33516689,2928.8,2928.7,3.2078]
[1752333414964,0.68273,2928.4,2928.3,3.2078]
[1752333415167,54.20403,2928.4,2928.3,3.2078]
[1752333416069,55.13645722,2928.4,2928.3,3.2078]
[1752333416367,55.13645722,2928.4,2928.2,3.5029]
[1752333416368,4.17205,2928.3,2928.2,3.5029]
[1752333416573,5.10447722,2928.3,2928.2,3.2078]
[1752333417371,5.10407959,2928.3,2928.2,3.2078]
[1752333418074,5.10407959,2928.3,2927.9,3.22844]
[1752333418075,5.97772,2928.0,2927.9,7.5201]
[1752333418374,56.92303052,2928.0,2927.9,4.9745]
[1752333418968,51.62213052,2928.0,2927.9,8.4774]
[1752333419370,50.008,2928.0,2927.9,8.4774]
[1752333419565,50.69082,2928.0,2927.9,8.4774]
[1752333419772,54.18012,2928.0,2927.9,8.4774]
[1752333420370,51.60532,2928.0,2927.9,8.4774]
[1752333420672,50.008,2928.0,2927.9,9.16025]
[1752333420878,50.001,2928.3,2928.1,1.7667]
[1752333421071,50.001,2928.3,2928.2,8.20288]
[1752333421268,50.001,2928.3,2928.2,9.16018]
[1752333421673,0.9145,2928.8,2928.3,1.7667]
[1752333421981,0.68271,2928.6,2928.5,0.68269]
[1752333422175,0.68271,2928.6,2928.5,7.39339]
[1752333422477,0.68271,2928.6,2928.5,6.7107]
[1752333422777,0.68275,2928.3,2928.2,3.2078]
[1752333422972,26.59325,2928.3,2928.2,6.7107]
[1752333423381,29.16805,2928.3,2928.2,6.7107]
[1752333423567,29.16505,2928.3,2928.2,3.2078]
[1752333424575,0.9145,2928.1,2927.5,3.5029]
[1752333424880,4.17222,2927.6,2927.5,3.5029]
[1752333425082,54.14822,2927.6,2927.5,3.5029]
[1752333425575,2.5748,2928.0,2927.3,3.2078]
[1752333425780,4.17218,2927.8,2927.7,5.7534]
[1752333425974,4.17218,2927.8,2927.7,3.2078]
[1752333425975,29.15918,2927.8,2927.7,3.2078]
[1752333426776,29.15918,2927.8,2927.7,5.7534]
[1752333427078,0.9145,2928.0,2927.7,3.2078]
[1752333427380,0.68283,2928.0,2927.9,0.68285]
[1752333427573,0.68281,2928.1,2928.0,0.68282]
[1752333427780,25.66381,2928.1,2928.0,3.5029]
[1752333428178,25.66381,2928.1,2928.0,4.18572]
[1752333428478,25.66381,2928.1,2928.0,3.5029]
[1752333428677,25.66481,2928.1,2928.0,3.5029]
[1752333429081,25.66481,2928.1,2928.0,4.18572]
[1752333429383,25.66081,2928.1,2928.0,3.5029]
[1752333430181,25.66081,2928.1,2928.0,4.18572]
[1752333430379,2.48836,2928.3,2928.2,3.22838]
[1752333430679,2.48836,2928.3,2928.0,3.2078]
[1752333430680,2.48831,2928.5,2928.4,5.95233]
[1752333430873,27.46131,2928.5,2928.4,5.95233]
[1752333431275,0.6827,2928.6,2928.5,5.9523]
[1752333431476,25.6537,2928.6,2928.5,5.9523]
[1752333431676,27.4593,2928.6,2928.5,5.2696]
[1752333431882,30.9486,2928.6,2928.5,4.3123]
[1752333432083,30.9486,2928.6,2928.5,1.7667]
[1752333432977,1.8056,2928.4,2928.3,5.95235]
[1752333433378,24.964,2928.4,2928.3,9.16015]
[1752333433883,24.964,2928.4,2928.3,8.35726162]
[1752333434074,1.7065,2929.0,2928.3,8.35726162]
[1752333434075,3.4972,2929.2,2928.8,3.5748]
[1752333434380,1.70629,2929.4,2928.0,2.35197842]
[1752333434381,25.64357,2929.1,2929.0,4.25738]
[1752333434580,0.68251,2929.4,2929.3,0.68252]
[1752333434782,25.6415,2929.4,2929.3,3.5748]
[1752333434977,26.556,2929.4,2929.3,3.5748]
[1752333435380,29.1387,2929.4,2929.3,4.25732]
[1752333435682,29.1387,2929.4,2929.3,3.5748]
[1752333436078,0.68254,2929.2,2929.1,3.2078]
[1752333436279,28.4562,2929.4,2929.2,0.68254]
[1752333436280,4.18483,2929.3,2929.2,0.68254]
[1752333436486,0.68254,2929.2,2929.1,3.89035]
[1752333436686,0.68254,2929.2,2929.1,3.2078]
[1752333436885,2.5827,2929.3,2929.1,3.2078]
[1752333437182,26.56112,2929.4,2929.3,0.9486]
[1752333437382,26.56112,2929.4,2929.3,3.5661]
[1752333437782,29.14382,2929.4,2929.3,3.5661]
[1752333437979,1.70612,2929.7,2929.1,3.2078]
[1752333437980,0.9196,2929.8,2929.4,0.68248]
[1752333438185,25.63343,2929.7,2929.6,3.5661]
[1752333438379,29.13573,2929.7,2929.6,3.5661]
[1752333438576,3.5023,2929.7,2929.6,4.24855]
[1752333438886,24.944,2929.7,2929.6,4.24855]
[1752333439184,25.8636,2929.7,2929.6,4.24855]
[1752333439382,26.54603,2929.7,2929.6,3.5661]
[1752333439685,29.12873,2929.7,2929.6,3.5661]
[1752333439887,28.4463,2929.7,2929.6,4.24855]
[1752333440273,29.12873,2929.7,2929.6,3.5661]
[1752333441777,2.5827,2930.1,2929.6,3.5661]
[1752333441986,28.4343,2930.0,2929.8,0.9486]
[1752333442182,29.11666,2930.0,2929.9,3.5661]
[1752333442481,1.60198,2929.9,2929.8,5.8253]
[1752333442784,24.931,2929.9,2929.8,7.4563]
[1752333442983,24.931,2929.9,2929.8,9.1032]
[1752333443281,25.61338,2929.9,2929.8,9.1032]
[1752333443781,25.61338,2929.9,2929.8,8.4208]
[1752333443982,27.33318,2929.9,2929.8,8.4208]
[1752333444382,27.33318,2929.9,2929.8,9.1032]
[1752333444587,24.931,2929.9,2929.8,9.1032]
[1752333444884,0.68237,2930.0,2929.9,5.89538]
[1752333445087,25.60437,2930.0,2929.9,5.213]
[1752333445380,0.68237,2930.0,2929.9,5.213]
[1752333445586,25.60337,2930.0,2929.9,5.213]
[1752333446081,25.60137,2930.0,2929.9,5.89538]
[1752333446285,24.919,2930.0,2929.9,5.89538]
[1752333446989,30.82346,2930.0,2929.9,5.213]
[1752333447182,30.82346,2930.0,2929.9,4.2644]
[1752333447485,27.5584,2930.0,2929.9,5.89538]
[1752333447877,30.82346,2930.0,2929.9,5.213]
[1752333448084,5.90446,2930.0,2929.9,5.213]
[1752333448384,30.81346,2930.0,2929.9,5.89538]
[1752333448886,30.81346,2930.0,2929.5,1.70616]
[1752333448887,5.2221,2929.6,2929.5,9.10327]
[1752333449092,2.6394,2929.6,2929.5,9.10327]
[1752333449278,25.59041,2929.8,2929.5,9.10327]
[1752333449584,28.22981,2929.8,2929.7,5.213]
[1752333449784,30.81251,2929.8,2929.7,5.213]
[1752333450184,30.81251,2929.8,2929.7,5.89543]
[1752333450386,55.0271,2929.8,2929.7,5.89543]
[1752333450576,55.7095,2929.8,2929.7,5.89543]
[1752333450983,51.5248,2929.8,2929.7,5.89543]
[1752333451388,5.90437,2930.4,2930.3,4.94669]
[1752333451685,30.80137,2930.4,2930.3,5.89529]
[1752333451880,30.1191,2930.4,2930.3,5.89529]
[1752333452284,5.90436,2930.4,2930.3,5.89529]
[1752333452684,30.79836,2930.4,2930.3,5.89529]
[1752333452884,30.1161,2930.4,2930.3,5.89529]
[1752333453881,2.6394,2930.4,2930.3,5.89529]
[1752333454085,27.5304,2930.4,2930.3,5.89529]
[1752333454589,27.5264,2930.4,2930.3,5.89529]
[1752333454784,3.5023,2930.7,2930.3,5.213]
[1752333454991,5.2221,2930.7,2930.6,5.89522]
[1752333455188,26.6038,2930.7,2930.6,5.89522]
[1752333455385,5.2221,2931.0,2930.9,2.32905]
[1752333455592,30.1041,2931.0,2930.9,2.32905]
[1752333455788,30.1021,2931.0,2930.9,2.32905]
[1752333455991,1.7198,2931.0,2930.9,5.89515]
[1752333456191,26.5988,2931.0,2930.9,5.89515]
[1752333456594,4.3025,2931.2,2931.1,5.8951]
[1752333456794,30.0991,2931.2,2931.1,5.8951]
[1752333457498,30.78118,2931.2,2931.1,5.8951]
[1752333457991,5.2221,2931.2,2931.1,5.8951]
[1752333458191,44.98432,2931.5,2931.4,5.89503]
[1752333458395,30.0941,2931.5,2931.4,5.89503]
[1752333458585,0.68199,2931.6,2931.4,5.89503]
[1752333458586,3.5023,2931.8,2931.7,0.68196]
[1752333458790,3.5023,2931.8,2931.7,5.89496]
[1752333458791,30.0901,2931.8,2931.7,5.89496]
[1752333458996,30.77204,2931.8,2931.7,5.213]
[1752333459291,5.2221,2931.8,2931.7,5.89496]
[1752333459590,69.5547,2932.0,2931.9,0.68191]
[1752333459792,69.5547,2932.0,2931.9,5.213]
[1752333459793,33.9768,2932.0,2931.9,5.213]
[1752333460093,5.2221,2932.0,2931.9,5.89491]
[1752333460291,30.76699,2932.0,2931.9,5.213]
[1752333460497,30.76599,2932.0,2931.9,5.213]
[1752333460694,30.76599,2932.0,2931.9,4.2644]
[1752333460895,30.76599,2932.0,2931.9,1.6469]
[1752333462298,4.98444,2931.8,2931.7,3.2078]
[1752333462492,30.76004,2931.8,2931.7,3.2078]
[1752333462689,2.6394,2931.2,2931.1,9.10289]
[1752333462896,30.0721,2931.6,2931.5,5.89501]
[1752333463100,27.4894,2931.6,2931.5,9.10281]
[1752333464696,2.6394,2931.6,2931.5,9.10281]
[1752333465103,3.32138,2931.6,2931.5,9.10281]
[1752333465296,5.78968,2931.6,2931.5,8.4208]
[1752333465492,5.79148,2931.6,2931.5,3.2078]
[1752333465690,5.79148,2931.6,2931.5,4.9528]
[1752333465895,5.79148,2931.6,2931.5,8.3989]
[1752333466101,27.4802,2931.6,2931.5,9.08091]
[1752333466396,26.5588,2931.6,2931.5,9.08091]
[1752333466903,0.68196,2931.7,2931.6,5.1911]
[1752333467095,3.28606,2931.7,2931.6,5.1911]
[1752333467290,3.28606,2931.7,2931.6,5.87308]
[1752333467694,5.75436,2931.7,2931.6,1.745]
[1752333468497,30.58436,2931.7,2931.6,1.745]
[1752333468697,5.0724,2931.7,2931.6,2.42698]
[1752333469000,29.9004,2931.7,2931.6,4.92608]
[1752333469395,29.9004,2931.7,2931.6,5.87308]
[1752333469598,30.57936,2931.7,2931.6,5.87308]
[1752333469802,30.57936,2931.7,2931.6,4.2441]
[1752333470003,30.57936,2931.7,2931.6,4.92608]
[1752333470299,30.57936,2931.7,2931.6,5.87308]
[1752333470494,29.8974,2931.7,2931.6,5.87308]
[1752333470894,1.6827,2931.7,2931.6,5.87308]
[1752333471496,0.68198,2931.6,2931.5,3.8898]
[1752333471702,0.68198,2931.6,2930.2,13.19557]
[1752333471703,5.0724,2930.9,2930.8,2.4991]
[1752333471904,29.8894,2930.9,2930.8,4.92627]
[1752333472098,27.4211,2930.9,2930.8,4.92627]
[1752333472302,26.4997,2930.9,2930.8,5.87327]
[1752333472505,1.6827,2930.9,2930.8,5.87327]
[1752333472709,5.0724,2931.2,2931.1,3.3741]
[1752333473002,30.56948,2931.2,2931.1,1.745]
[1752333473206,5.75452,2931.0,2930.9,3.2078]
[1752333473396,5.75452,2931.0,2930.9,3.88995]
[1752333473598,5.75452,2931.0,2930.9,3.2078]
[1752333473794,5.75452,2931.0,2930.9,3.88995]
[1752333474197,5.0724,2931.0,2930.9,3.88995]
[1752333474402,29.8844,2931.0,2930.9,9.08105]
[1752333474608,5.0724,2931.0,2930.9,3.88995]
[1752333474904,0.9214,2931.3,2931.2,2.42708]
[1752333475104,30.56238,2931.6,2931.5,2.692]
[1752333475303,30.80029711,2931.6,2931.5,3.37401]
[1752333475606,30.80029711,2931.6,2931.5,5.87311]
[1752333475803,30.80029711,2931.6,2931.5,5.1911]
[1752333475999,28.09259711,2931.6,2931.2,3.2078]
[1752333476198,5.99261007,2931.5,2931.4,2.42701]
[1752333476400,5.0724,2931.5,2931.4,5.87311]
[1752333476597,5.99254983,2931.5,2931.4,5.87311]
[1752333477204,6.67455983,2931.5,2931.4,5.1911]
[1752333477405,5.99254983,2931.5,2931.4,4.92613]
[1752333478105,6.67455983,2931.5,2931.4,4.2441]
[1752333478405,5.0724,2931.4,2931.3,0.68205]
[1752333478603,54.6674,2931.4,2931.3,0.68205]
[1752333478801,54.6674,2931.4,2931.2,0.68208]
[1752333478802,5.75445,2931.3,2931.2,0.68208]
[1752333479204,5.75445,2931.3,2930.9,0.947]
[1752333479205,5.75445,2931.3,2930.9,4.1548]
[1752333479399,5.75452,2931.0,2930.9,3.2078]
[1752333479702,5.75459,2930.7,2930.6,3.2078]
[1752333480000,53.65889,2930.7,2930.6,3.2078]
[1752333480195,2.1403,2929.8,2929.6,2.4991]
[1752333480398,49.584,2929.7,2929.6,2.4991]
[1752333480601,91.3054,2929.7,2929.2,0.947]
[1752333480802,91.3054,2929.7,2929.6,4.12855]
[1752333481003,2.1403,2930.1,2930.0,1.62936]
[1752333481004,49.579,2930.1,2930.0,1.62936]
[1752333481197,0.9214,2930.3,2930.0,3.4461]
[1752333481410,49.577,2930.6,2930.3,3.4461]
[1752333481605,50.4984,2930.6,2930.5,7.33614]
[1752333481906,50.77520695,2930.9,2930.8,4.12826]
[1752333482103,50.49714492,2930.9,2930.8,3.4461]
[1752333482302,51.17929492,2930.9,2930.8,3.4461]
[1752333482501,50.49714492,2930.9,2930.8,3.44345697]
[1752333482910,2.143,2930.7,2930.1,3.2078]
[1752333483106,53.70194492,2930.6,2930.1,3.2078]
[1752333483305,0.68229,2930.3,2930.2,0.947]
[1752333483505,52.09583492,2930.3,2930.2,0.947]
[1752333483705,51.41354492,2930.3,2930.2,0.947]
[1752333483902,50.49214492,2930.3,2930.2,1.62931]
[1752333484200,0.92214492,2930.3,2930.2,1.62931]
[1752333484405,49.564,2930.7,2930.3,0.947]
[1752333484604,1.70569,2930.4,2930.0,2.4991]
[1752333484802,0.92227405,2930.3,2930.2,7.33621]
[1752333485006,49.562,2930.7,2930.6,0.68222]
[1752333485202,49.562,2930.7,2930.4,2.4991]
[1752333485406,49.562,2930.7,2930.6,4.12832]
[1752333488410,50.22819,2930.8,2930.7,4.12829]
[1752333488912,51.14959,2930.8,2930.7,4.12829]
[1752333489312,50.4674,2930.8,2930.7,4.12829]
[1752333489507,49.546,2930.8,2930.7,4.12829]
[1752333489702,40.8,2931.1,2930.5,3.2078]
[1752333489909,0.9214,2931.3,2930.6,2.4991]
[1752333490108,27.9768,2931.2,2931.1,4.1282]
[1752333490715,29.58028,2931.2,2931.1,4.1282]
[1752333491207,28.8982,2931.2,2931.1,4.1282]
[1752333491515,4.81122,2931.5,2931.4,3.4461]
[1752333491719,27.9718,2931.5,2931.4,4.12813]
[1752333492013,3.88981,2931.5,2931.4,4.12813]
[1752333492212,0.68201,2931.5,2931.4,4.12813]
[1752333492419,0.68199,2931.6,2931.5,0.682]
[1752333492612,25.44399,2931.6,2931.5,4.1281]
[1752333492813,0.68199,2931.6,2931.5,3.4461]
[1752333493013,26.36439,2931.6,2931.5,3.4461]
[1752333493312,26.36439,2931.6,2931.5,2.4991]
[1752333493614,0.9214,2931.8,2931.7,0.68196]
[1752333493809,25.6824,2931.8,2931.7,4.08016]
[1752333494009,3.2078,2931.9,2931.8,0.68194]
[1752333494210,5.05224706,2931.9,2931.8,4.08014]
[1752333494410,29.80924706,2931.9,2931.8,4.08014]
[1752333494714,28.8862,2931.9,2931.8,4.08014]
[1752333495516,29.56811,2931.9,2931.8,4.08014]
[1752333495909,4.81111,2931.9,2931.8,4.08014]
[1752333496110,4.1292,2931.9,2931.8,4.08014]
[1752333496306,28.8802,2931.9,2931.8,4.08014]
[1752333497013,3.1046,2931.8,2931.4,3.2078]
[1752333497211,25.7479,2931.7,2931.6,3.13317]
[1752333497906,27.3895,2931.7,2931.6,4.82347]
[1752333498305,27.3825,2931.7,2931.6,5.77017]
[1752333499611,27.3825,2931.8,2931.7,5.77016]
[1752333499818,2.6385,2931.8,2931.7,5.77016]
[1752333500115,27.3795,2931.8,2931.7,5.77016]
[1752333501009,2.6385,2931.8,2931.7,5.77016]
[1752333501309,52.3428,2932.3,2932.2,3.31885]
[1752333501620,1.6416,2932.4,2932.3,5.76999]
[1752333501813,31.08506774,2932.4,2932.3,4.1415]
[1752333502014,2.32342,2932.3,2932.2,0.68184]
[1752333502209,0.9969,2932.1,2931.7,2.4512]
[1752333502415,2.6385,2931.9,2931.8,4.82342]
[1752333502621,2.6385,2931.9,2931.8,5.77012]
[1752333503916,2.6385,2931.9,2931.8,5.77014]
[1752333504118,3.32042,2931.9,2931.8,5.77014]
[1752333504511,3.32042,2931.9,2931.8,4.1415]
[1752333504820,2.6385,2931.7,2931.6,8.97797]
[1752333505611,54.161,2931.7,2931.6,4.1415]
[1752333505811,54.84296,2931.7,2931.6,2.4512]
[1752333506016,54.84296,2931.7,2931.6,3.13319]
[1752333506211,54.161,2931.7,2931.6,4.82349]
[1752333506422,52.0865,2931.7,2931.6,4.82349]
[1752333506819,52.76846,2931.7,2931.6,4.1415]
[1752333507917,54.84296,2931.7,2931.6,4.1415]
[1752333508121,5.39501,2931.5,2931.4,4.1415]
[1752333508318,54.82601,2931.5,2931.4,4.1415]
[1752333508625,4.39813,2931.4,2931.3,3.2078]
[1752333508921,5.39503,2931.4,2931.3,3.2078]
[1752333509122,5.39503,2931.4,2931.3,7.3493]
[1752333509917,2.6385,2931.4,2931.3,8.97806]
[1752333510125,3.32053,2931.4,2931.3,8.296]
[1752333510329,3.32053,2931.4,2931.3,8.97806]
[1752333510531,2.6385,2931.4,2931.3,8.97806]
[1752333510828,49.431,2931.5,2931.4,2.37233]
[1752333511031,51.09586,2931.7,2931.6,2.37229]
[1752333511226,3.2078,2931.8,2931.7,4.82346]
[1752333511523,3.2078,2931.8,2931.7,5.77016]
[1752333512930,8.60274,2931.8,2931.7,2.4512]
[1752333513124,2.6385,2931.5,2931.4,4.1415]
[1752333513328,28.02251,2931.5,2931.4,4.1415]
[1752333513518,3.32051,2931.5,2931.4,5.77023]
[1752333513721,1.67891,2931.5,2931.4,5.77023]
[1752333513924,3.2078,2931.8,2931.7,3.31896]
[1752333514222,3.2078,2931.8,2931.7,5.77016]
[1752333514529,24.698,2932.2,2932.1,1.6903]
[1752333514733,25.62091188,2932.2,2932.1,5.77007]
[1752333515120,26.61781188,2932.2,2932.1,5.77007]
[1752333515524,28.25941188,2932.2,2932.1,5.77007]
[1752333515928,28.94126188,2932.2,2932.1,5.77007]
[1752333516131,3.56141188,2932.2,2932.1,5.77007]
[1752333516626,0.92291188,2932.2,2932.1,5.77007]
[1752333517026,24.691,2932.3,2932.2,3.31885]
[1752333517223,0.9969,2932.3,2932.2,5.77005]
[1752333517532,30.22113,2932.7,2932.6,5.0882]
[1752333517733,30.46324705,2932.7,2932.6,4.1415]
[1752333517933,31.46014705,2932.7,2932.6,4.82325]
[1752333518438,1.67865,2932.6,2932.5,2.4512]
[1752333518633,3.56234705,2932.6,2932.5,4.82328]
[1752333518934,3.56234705,2932.6,2932.5,5.0882]
[1752333519330,0.92384705,2932.6,2932.5,5.76998]
[1752333519531,0.92384705,2932.6,2932.5,4.1415]
[1752333519532,3.32025,2932.6,2932.5,4.1415]
[1752333519732,5.39475,2932.6,2932.5,4.1415]
[1752333519930,1.6416,2932.4,2932.3,2.4512]
[1752333520129,4.3979,2932.4,2932.2,0.68183]
[1752333520337,3.32032,2932.3,2932.2,2.4512]
[1752333520634,3.32032,2932.3,2932.2,4.1415]
[1752333520836,5.39487,2932.1,2932.0,4.1415]
[1752333521336,30.07387,2932.1,2932.0,4.1415]